Cogmind - Beta 13 @@@ ROGUE MODE // 2024.04.24 @ 22:59:36 Player: Alphabethead Result: Destroyed by as-77313 with Assembled Rifle Performance ------------- Evolutions (0) 0 Regions Visited (2) 400 Robots Destroyed (15) 75 Value Destroyed (295) 295 Prototype IDs (0) 0 Alien Tech Used (0) 0 Bonus (0) 0 TOTAL SCORE: 770 Bonus ------- None Cogmind --------- Core Integrity 0/250 Matter 273/300 Energy 125/125 System Corruption 0% Temperature Cool (5) Movement Walking (120) Location -10/Mines Parts ------- > --- POWER (1) -------- Light Ion Engine > --- PROPULSION (2) --- Aluminum Leg Aluminum Leg > --- UTILITY (2) ------ Medium Storage Unit Signal Interpreter > --- WEAPON (2) ------- Shotgun Makeshift Shrapnel Gun > --- INVENTORY (10) --- Aluminum Leg Large Storage Unit Sensor Array Seismic Detector Shotgun Shotgun Shotgun Mining Laser Peak State ------------ > --- POWER ------------ Ion Engine > --- PROPULSION ------- Aluminum Leg Aluminum Leg > --- UTILITY ---------- Medium Storage Unit Signal Interpreter > --- WEAPON ----------- Shotgun Makeshift Shrapnel Gun > --- INVENTORY -------- Ion Engine Aluminum Leg Aluminum Leg Aluminum Leg Large Storage Unit Sensor Array Shotgun Shotgun Shotgun Mining Laser [Rating: 12] Favorites ----------- Power Ion Engine Engine Ion Engine Propulsion Aluminum Leg Leg Aluminum Leg Wheel Compact Wheel Utility Medium Storage Unit Device Sensor Array Storage Medium Storage Unit Processor Signal Interpreter Weapon Shotgun Energy Gun Medium Laser Ballistic Gun Shotgun Build | -11 -10 -10 ------- Run | Yrd Mat Min Slots Evolved . | . . . Power . | . . . Propulsion . | . . . Utility . | . . . Weapon . | . . . Parts Attached 23 | 8 10 5 Power 4 | 1 1 2 Engine 4 | 1 1 2 Core . | . . . Reactor . | . . . Propulsion 6 | 4 . 2 Treads . | . . . Leg 4 | 2 . 2 Wheel 2 | 2 . . Hover . | . . . Flight . | . . . Utility 8 | 1 7 . Device 2 | . 2 . Storage 5 | 1 4 . Processor 1 | . 1 . Hackware . | . . . Protection . | . . . Artifact . | . . . Weapon 5 | 2 2 1 Energy Gun 1 | 1 . . Energy Cannon . | . . . Ballistic Gun 4 | 1 2 1 Ballistic Cannon . | . . . Launcher . | . . . Special Weapon . | . . . Impact Weapon . | . . . Slashing Weapon . | . . . Piercing Weapon . | . . . Special Melee Weapon . | . . . Unidentified Prototypes . | . . . Parts Lost 4 | . . 4 Power 2 | . . 2 Propulsion 2 | . . 2 Utility . | . . . Weapon . | . . . Highest Loss Streak 2 | . . 2 To Critical Strikes . | . . . Average Slot Usage (%) 98 | . 98 97 Engine 13 | . 14 12 Leg 27 | . 28 27 Device 5 | . 6 . Storage 13 | . 13 14 Processor 7 | . 6 14 Energy Gun 3 | . 3 . Ballistic Gun 24 | . 24 28 Naked Turns . | . . . Heaviest Build 30 | 12 30 21 Greatest Support 26 | 26 20 20 Greatest Overweight (x) 1 | . 1 1 Average Overweight (x) . | . . . Largest Inventory Capacity 15 | 8 15 10 Average Capacity 9 | 7 9 10 Most Carried 10 | 3 10 10 Average Carried 7 | 1 8 8 Final Capacity 10 | 8 10 10 Final Carried 10 | 3 10 8 Class Distribution -------------------- 96% | Mutant 3% | Scavenger-Mutant Dominant Class ---------------- Mutant | -10/Materials Mutant | -10/Mines Resources | -11 -10 -10 ----------- Run | Yrd Mat Min Matter Collected 617 | 227 306 84 Remotely . | . . . Salvage Created 304 | . 289 15 Parts 30 | . 30 . Haulers Intercepted . | . . . Recyclers Shooed 2 | . 1 1 Parts Field Recycled . | . . . Retrieved Matter . | . . . Parts Self-Destructed . | . . . Prevented . | . . . Kills | -11 -10 -10 ------- Run | Yrd Mat Min Combat Hostiles Destroyed 15 | . 13 2 Guns 15 | . 13 2 Classes Destroyed 5 | . 3 2 Watcher 1 | . 1 . Swarmer 9 | . 9 . Grunt 4 | . 4 . Demolisher 1 | . . 1 Assembled 1 | . . 1 Best Kill Streak 3 | . 3 1 Combat Bots Only 3 | . 3 1 Max Kills in Single Turn 1 | . 1 1 Gunslinging . | . . . Exploded . | . . . Melee . | . . . Uniques/NPCs Destroyed . | . . . Combat | -11 -10 -10 -------- Run | Yrd Mat Min Hostile Shots Fired 78 | . 51 27 Missed 16 | . 11 5 Damage Taken 955 | . 365 590 Core 257 | . 91 166 Absorbed by Shields . | . . . Core Remaining (%) 100 | 100 . . Volleys Fired 46 | . 37 9 Largest 2 | . 2 2 Hottest 70 | . 70 47 Shots Fired 92 | . 74 18 Gun 92 | . 74 18 Cannon . | . . . Launcher . | . . . Special . | . . . Kinetic 69 | . 51 18 Thermal 23 | . 23 . Explosive . | . . . Electromagnetic . | . . . Robot Hit Streak 5 | . 5 3 Robot Miss Streak 6 | . 6 6 Penetration Max . | . . . Secondary Targets 1 | . 1 . Max Gunslinging Chain 1 | . 1 . Shots Hit Robots 56 | . 45 11 Core Hits 31 | . 23 8 Critical Kills . | . . . Critical Parts Destroyed 1 | . 1 . Critical Strikes 2 | . 2 . Burn 1 | . 1 . Destroy 1 | . 1 . Melee Attacks . | . . . Impact . | . . . Slashing . | . . . Piercing . | . . . Sneak Attacks . | . . . Combat Hostiles . | . . . Follow-up Attacks . | . . . Damage Inflicted 707 | . 559 148 Guns 692 | . 546 146 Cannons . | . . . Explosions . | . . . Melee . | . . . Ramming 15 | . 13 2 Kinetic 556 | . 410 146 Thermal 136 | . 136 . Explosive . | . . . Electromagnetic . | . . . Impact . | . . . Slashing . | . . . Piercing . | . . . Highest Corruption . | . . . Average Corruption . | . . . Corruption Purged . | . . . Corruption Blocked . | . . . Overload Shots . | . . . Overflow Damage . | . . . Projectiles . | . . . Explosions . | . . . Melee . | . . . Knockbacks . | . . . Impact . | . . . Kinetic . | . . . Secondary . | . . . Self-Inflicted Damage . | . . . Shots . | . . . Rammed . | . . . Targets Rammed 8 | . 6 2 Kicked 8 | . 6 2 Crushed . | . . . Highest Temperature 111 | . 111 15 Average Temperature 31 | . 32 11 Received Heat Transfer 150 | . 90 60 Siege Activations . | . . . Robots Corrupted . | . . . Combat Hostiles . | . . . Parts Fried . | . . . Impact Corruptions . | . . . Robots Melted . | . . . Combat Hostiles . | . . . Parts Melted . | . . . Heat Transferred 481 | . 481 . Parts Sabotaged . | . . . Parts Stolen . | . . . Parts Stripped . | . . . Power Chain Reactions . | . . . Alert | -11 -10 -10 ------- Run | Yrd Mat Min Peak Influence 180 | . 180 40 Initial 11 | . . 11 Average 51 | . 58 24 Maximum Alert Level . | . . . Low Security (%) 100 | 100 100 100 Level 1 . | . . . Level 2 . | . . . Level 3 . | . . . Level 4 . | . . . Level 5 . | . . . High Security . | . . . Max Security . | . . . Squads Dispatched 4 | . 4 . Investigation 3 | . 3 . Extermination . | . . . Reinforcement 1 | . 1 . Assault . | . . . Garrison . | . . . Intercept . | . . . Searches Triggered . | . . . Construction Impeded . | . . . Haulers Reinforced . | . . . Active Scanning Responses . | . . . Cargo Convoy Interrupts . | . . . Stealth | -11 -10 -10 --------- Run | Yrd Mat Min Distress Signals 1 | . 1 . Communications Jammed . | . . . Distress Signals . | . . . Times Spotted 37 | . 24 13 Peak Tracking Total 8 | . 3 8 Tactical Retreats 3 | . 2 1 Traps | -11 -10 -10 ------- Run | Yrd Mat Min Traps Triggered 2 | . 2 . Indirectly . | . . . Trap Hack Attempts . | . . . Triggered . | . . . Disarmed . | . . . Reprogrammed . | . . . Reused . | . . . Traps Extracted . | . . . Installed . | . . . Triggered . | . . . Machines | -11 -10 -10 ---------- Run | Yrd Mat Min Machines Disabled . | . . . Max in Single Turn . | . . . Machines Repaired . | . . . Machines Dismantled . | . . . Machines Sabotaged . | . . . Overloaded Fab Kills . | . . . Hacking | -11 -10 -10 --------- Run | Yrd Mat Min Machines Accessed 4 | . 4 . Terminals 3 | . 3 . Fabricators . | . . . Repair Stations . | . . . Recycling Units 1 | . 1 . Scanalyzers . | . . . Garrison Access . | . . . Total Hacks 13 | . 13 . Successful 6 | . 6 . Failed 7 | . 7 . Catastrophic 1 | . 1 . Database Lockouts . | . . . Manual . | . . . Terminals 10 | . 10 . Fabricators . | . . . Repair Stations . | . . . Recycling Units 3 | . 3 . Scanalyzers . | . . . Garrison Access . | . . . Terminal Hacks 4 | . 4 . Scanalyzer Index 1 | . 1 . Alert Level 1 | . 1 . Patrol Status 1 | . 1 . Reinforcement Status 1 | . 1 . Fabricator Hacks . | . . . Repair Station Hacks . | . . . Recycling Unit Hacks 2 | . 2 . Report Inventory 1 | . 1 . Retrieve Components 1 | . 1 . Scanalyzer . | . . . Garrison Access Hacks . | . . . Unauthorized Hacks . | . . . Terminals . | . . . Fabricators . | . . . Repair Stations . | . . . Recycling Units . | . . . Scanalyzers . | . . . Garrison Access . | . . . Data Cores Recovered . | . . . Used . | . . . Hacking Detections 3 | . 3 . Full Trace Events 1 | . 1 . Feedback Events . | . . . Feedback Blocked . | . . . Robot Schematics Acquired . | . . . Robots Built . | . . . Authchips . | . . . Time . | . . . Total Robot Build Rating . | . . . Part Schematics Acquired . | . . . Parts Built . | . . . Authchips . | . . . Time . | . . . Total Part Build Rating . | . . . Parts Repaired . | . . . Time . | . . . Parts Recycled . | . . . Recycled Matter . | . . . Retrieved Matter . | . . . Retrieved Components 2 | . 2 . Parts Scanalyzed . | . . . Part Schematics Acquired . | . . . Parts Damaged . | . . . Bothacking | -11 -10 -10 ------------ Run | Yrd Mat Min Used RIF Installer . | . . . Robots Hacked . | . . . Non-combat . | . . . Combat . | . . . Robot Hacks Applied . | . . . Relay Couplers Released . | . . . Fabnet Peak Effective % . | . . . Robots Rewired . | . . . Allies Hacked . | . . . Hacks Repelled . | . . . Allies | -11 -10 -10 -------- Run | Yrd Mat Min Total Allies . | . . . Largest Group . | . . . Highest-Rated Group . | . . . Highest-Rated Ally . | . . . Total Orders . | . . . Ally Attacks . | . . . Total Damage . | . . . Kills . | . . . Allies Corrupted . | . . . Allies Melted . | . . . Intel | -11 -10 -10 ------- Run | Yrd Mat Min Robot Analysis Total . | . . . Derelict Logs Recovered . | . . . Drone Launches . | . . . Drone Recoveries . | . . . Exploration | -11 -10 -10 ------------- Run | Yrd Mat Min Turns Passed 2252 | 60 1830 362 Spaces Moved 1255 | 51 956 248 Core 1 | 1 . . Treads . | . . . Legs 1205 | 1 956 248 Wheels 49 | 49 . . Hover . | . . . Flight . | . . . Fastest Speed 50 | 50 120 120 Average Speed 156 | 90 166 129 Slowest Speed 190 | 120 190 190 Overloaded Moves . | . . . Propulsion Burnouts . | . . . Robots Hopped . | . . . Cave-ins Triggered . | . . . Exploration Rate (%) 47 | 3 95 44 Regions Visited 2 Branch Regions 1 Pre-discovered Areas . | . . . Known Exits Taken 1 | . 1 . Unknown Exits Taken 1 | 1 . . Scrap Searched . | . . . Spaces Dug . | . . . Terrain Destroyed . | . . . Melee . | . . . Projectile . | . . . AOE . | . . . Terrain Rammed . | . . . Walls Destroyed . | . . . Machines Disabled . | . . . Actions | -11 -10 -10 --------- Run | Yrd Mat Min Total 1451 | 61 1121 269 Wait 71 | . 69 2 Move 1253 | 50 955 248 Hop . | . . . Pick Up 31 | 3 26 2 Fast Attach 10 | 6 3 1 Attach 3 | . . 3 Detach 2 | . 2 . Swap 10 | 2 7 1 Drop 17 | . 16 1 Fire 46 | . 37 9 Melee . | . . . Ram . | . . . Kick 8 | . 6 2 Crush . | . . . Escape Stasis . | . . . Rewire . | . . . Trap . | . . . Miscellaneous . | . . . Route ------- -11/Scrapyard -10/Materials (discovered 5 exits: *Mat x2 / *Min x2 / *Sub) -10/Mines (discovered 1 exit: *Mat) History --------- Turn | Location | Event 5 | -11/Scrapyard | Discovered new exit (range 15) 61 | -11/Scrapyard | Entered Materials 315 | -10/Materials | Build established: Mutant 335 | -10/Materials | Discovered new exit (range 15) 606 | -10/Materials | Discovered new exit (range 6) 850 | -10/Materials | Discovered new exit (range 16) 1060 | -10/Materials | Discovered new exit (range 8) 1096 | -10/Materials | Identified exit to Materials 1637 | -10/Materials | Discovered new exit (range 10) 1658 | -10/Materials | Identified exit to Subcaves 1785 | -10/Materials | Identified exit to Mines 1891 | -10/Materials | Entered Mines 1914 | -10/Mines | Discovered exit to Materials (range 6) 1948 | -10/Mines | A weapon hastily lodged in a ceiling crevice suddenly fell to the ground 1983 | -10/Mines | Assembled infested the area 2133 | -10/Mines | Core integrity fell below 50% 2240 | -10/Mines | Core integrity fell below 20% 2253 | -10/Mines | Destroyed by as-77313 with Assembled Rifle Last Messages --------------- 02113_ Kicked R-06 Scavenger. 02136_ D-53 Grenadier destroyed. 02136_ Ion Engine destroyed. 02137_ The unstable cave ceiling collapses. 02142_ Aluminum Leg destroyed. 02143_ The unstable cave ceiling collapses. 02143_ D-53 Grenadier destroyed. 02144_ The unstable cave ceiling collapses. 02171_ K-01 Serf collects debris. 02171_ as-90688 sneak attacks. 02171_ K-01 Serf destroyed. 02173_ as-90688 destroyed. 02177_ Acquired 24 matter. 02178_ Acquired 15 matter. 02181_ Acquired 28 matter. 02182_ Acquired 7 matter. 02184_ Acquired Lgt. Ion Engine. 02186_ Acquired 10 matter. 02194_ K-01 Serf collects debris. 02213_ Acquired Seismic Detector. Map ----- +----------------------------------------------------+ | ?????????????????????????????????????????# ##?? | | ?????????????????????????????????????????# ###### | | ?????????????????????????????????????????# #?# | | ?????????????????????????????????????????# #?# | | ?????????????????????????????????????????# #?# | | ?????????????????????????????????????????# #?# | | ???????????????????????????????????????### #?# | | ???????????????????????????????###?????# #?# | | ???????????????????????????????######### ####?# | | ???????????????????????????????## = #????# | | ???????????????????????????????## %#######????# | | ???????????????????????????????## # #????????# | | ??????????????????????????????## ###????????# | | ?????????????????????????????## =####??????# | | ????????????????????????????## *%# ##?????# | | ?????????????????????????#??#!%! |! #?????# | | ?????????????????????????# ## # #?????# | | ?????????????????????###?# ## ###???### | | ????????????????????## ### #?????# | | ????????????????????# # % k ##?????# | | ?????????????????????# # #!% # ##?????# | | ?????????????????????## ## # ##% #?????## | | ??????????????????????## # # #% #??????? | | ??????????????????????## # ##=! ##??????? | | ??????????????# !%#### a a ###%*# #?????### | | ??????????????# ! $ @ ########?#%####????## | | ??????????????## #### ##????????#*#??????## | | ???????????????#???????####?????????# ######## | | ????????????????????????????????????# < | | ??????????????????????????????????######## #### | | ?????????????????????????????????## #### #??## | | ?????????????????????????????????# ## #???### | | ?????????????????????????????????# ## #?????? | | ?????????????????????????????????## = #?????? | | ??????????????????????????????????##########?????? | | ?????????????????????????????????????????????????? | | ?????????????????????????????????????????????????? | | | | | | | | | | | | | | | | | | | | | | | | | | | +----------------------------------------------------+ Best States ------------- Heat Dissipation 25 Energy Generation 10 Energy Capacity 250 Matter Stores 300 Matter Capacity 300 Sight Range 16 Robot Scan Range 14 Terrain Scan Density 10 Evasion (%) 55 Item Schematics ----------------- None Robot Schematics ------------------ None Fabricated ------------ Nothing Alien Tech Used ----------------- None Achievements -------------- None Challenges ------------ None Game ------ Seed AccelerationSpacefoldShifter Manual? 0 Play Time 00:21:10 Cumulative 10.0 hours Start 2024.04.24 @ 22:41:39 End 2024.04.24 @ 22:59:36 Sessions 1 Manual Loads 0 Difficulty Rogue Special Mode None Game No. 13 Rogue 13 Adventurer 0 Explorer 0 Win Type - Total 0 Types 0/0/0/0/0/0/0/0/0 Lore% 13 Gallery% 15 Achievement% 13 Wizard Run 0 Options --------- Layout 1 ASCII 0 Keyboard 1 Movement Arrows Keybinds 0 Fullscreen 1 Font 24/Smallcaps Map View 50x35 Zoom Use 0% Tactical HUD 1 Map Filters NONE Filters NONE Steam 1 RUN: cb941ba7-2fdf-4fba-a7e7-297dbd356791